fUST/lending_fUST_20250413
["ID","MTS","AMOUNT","RATE_DAILY","PERIOD"]
[357854505,1744473833190,10000.0,0.00028,10]
[357854506,1744473839577,2341.34114048,0.00028,10]
[357854507,1744473851505,10000.0,0.00027,30]
[357854508,1744473865800,10000.0,0.00027,30]
[357854509,1744473874796,10000.0,0.00025,10]
[357854510,1744473880721,10000.0,0.00027,30]
[357854511,1744473888655,10000.0,0.00027,30]
[357854512,1744473896615,10000.0,0.00027,30]
[357854513,1744473909205,8069.0,0.00025,10]
[357854533,1744474232315,-10000.0,0.00022531,2]
[357854534,1744474232325,-300.0,0.00022542,2]
[357854535,1744474232335,-334.4698181,0.00022544,2]
[357854536,1744474232345,-250.0,0.00022796,2]
[357854537,1744474232354,-2234.58672165,0.00022796,2]
[357854538,1744474232364,-3371.6762556,0.00022846,2]
[357854539,1744474232375,-2167.11711532,0.00022879,2]
[357854540,1744474232385,-24582.5527784,0.00022897,2]
[357854541,1744474232394,-495.338133,0.00022979,2]
[357854542,1744474232404,-730.52076966,0.00023477,2]
[357854543,1744474232414,-181.83940784,0.00023696,2]
[357854544,1744474232424,-181.83940781,0.00023696,2]
[357854545,1744474232435,-181.83940781,0.00023697,2]
[357854546,1744474232445,-250.0,0.00023697,2]
[357854547,1744474232454,-181.83940781,0.00023697,2]
[357854548,1744474232465,-250.0,0.000237,2]
[357854549,1744474232475,-500.0,0.00023773,2]
[357854550,1744474232486,-500.0,0.00023773,2]
[357854551,1744474232496,-220.97975779,0.00023773,2]
[357854552,1744474232506,-365.3450615,0.00023773,2]
[357854553,1744474232516,-156.56887551,0.00023773,2]
[357854554,1744474232526,-500.0,0.00023773,2]
[357854555,1744474232537,-500.0,0.00023773,2]
[357854556,1744474232547,-500.0,0.00023773,2]
[357854557,1744474232557,-500.0,0.00023773,2]
[357854558,1744474232568,-500.0,0.00023773,2]
[357854559,1744474232578,-500.0,0.00023773,2]
[357854560,1744474232588,-500.0,0.00023773,2]
[357854561,1744474232598,-500.0,0.00023773,2]
[357854562,1744474232608,-207.4,0.00023783,2]
[357854563,1744474232618,-748.27,0.00023784,3]
[357854564,1744474232628,-187.3409426,0.00023794,2]
[357854565,1744474232639,-500.0,0.00023796,2]
[357854566,1744474232649,-229.87833724,0.00023796,2]
[357854567,1744474232659,-196.63833074,0.00023797,2]
[357854568,1744474232670,-2015.71413984,0.00023797,3]
[357854569,1744474232680,-10469.31306984,0.00023797,2]
[357854570,1744474232694,-255.90531252,0.00023797,2]
[357854571,1744474232720,-8177.84504777,0.00023797,2]
[357854607,1744474237996,-293.33861973,0.00023793,2]
[357854617,1744474238091,-206.66138027,0.00023793,2]
[357854618,1744474238101,-500.0,0.00023793,2]
[357854619,1744474238110,-193.14288463,0.00023793,2]
[357854620,1744474238120,-500.0,0.00023793,2]
[357854621,1744474238130,-500.0,0.00023793,2]
[357854622,1744474238140,-239.86010022,0.00023793,2]
[357854623,1744474238149,-500.0,0.00023793,2]
[357854624,1744474238160,-839.39435038,0.00023793,2]
[357854625,1744474238170,-500.0,0.00023793,2]
[357854626,1744474238179,-500.0,0.00023793,2]
[357854627,1744474238189,-500.0,0.00023793,2]
[357854628,1744474238200,-500.0,0.00023793,2]
[357854629,1744474238210,-839.39435038,0.00023793,2]
[357854630,1744474238219,-500.0,0.00023793,2]
[357854631,1744474238229,-500.0,0.00023793,2]
[357854632,1744474238239,-500.0,0.00023793,2]
[357854633,1744474238252,-500.0,0.00023793,2]
[357854634,1744474238261,-500.0,0.00023793,2]
[357854635,1744474238271,-839.39435038,0.00023793,2]
[357854636,1744474238281,-500.0,0.00023793,2]
[357854637,1744474238295,-500.0,0.00023793,2]
[357854638,1744474238307,-228.38912017,0.00023793,2]
[357854639,1744474238318,-500.0,0.00023793,2]
[357854640,1744474238328,-500.0,0.00023793,2]
[357854641,1744474238339,-839.39435038,0.00023793,2]
[357854642,1744474238350,-500.0,0.00023793,2]
[357854644,1744474238359,-500.0,0.00023793,2]
[357854646,1744474238370,-500.0,0.00023793,2]
[357854648,1744474238381,-839.39435038,0.00023793,2]
[357854650,1744474238391,-500.0,0.00023793,2]
[357854652,1744474238403,-500.0,0.00023793,2]
[357854654,1744474238413,-500.0,0.00023793,2]
[357854656,1744474238425,-500.0,0.00023793,2]
[357854658,1744474238435,-839.39435038,0.00023793,2]
[357854687,1744474238718,-500.0,0.00023793,2]
[357854689,1744474238729,-500.0,0.00023793,2]
[357854691,1744474238739,-839.39435038,0.00023793,2]
[357854693,1744474238749,-500.0,0.00023793,2]
[357854695,1744474238758,-500.0,0.00023793,2]
[357854697,1744474238768,-839.39435038,0.00023793,2]
[357854699,1744474238777,-500.0,0.00023793,2]
[357854701,1744474238788,-839.39435038,0.00023793,2]
[357854703,1744474238799,-500.0,0.00023793,2]
[357854705,1744474238809,-500.0,0.00023793,2]
[357854707,1744474238818,-500.0,0.00023793,2]
[357854709,1744474238828,-500.0,0.00023793,2]
[357854712,1744474238838,-500.0,0.00023793,2]
[357854714,1744474238847,-839.39435038,0.00023793,2]
[357854716,1744474238856,-500.0,0.00023793,2]
[357854718,1744474238867,-500.0,0.00023793,2]
[357854720,1744474238876,-839.39435038,0.00023793,2]
[357854722,1744474238886,-500.0,0.00023793,2]
[357854724,1744474238896,-839.39435038,0.00023793,2]
[357854726,1744474238905,-500.0,0.00023793,2]
[357854728,1744474238915,-839.39435038,0.00023793,2]
[357854730,1744474238925,-839.39435038,0.00023793,2]
[357854732,1744474238935,-839.39435038,0.00023793,2]
[357854734,1744474238945,-839.39435038,0.00023793,2]
[357854736,1744474238956,-839.39435038,0.00023793,2]
[357854738,1744474238967,-839.39435038,0.00023793,2]
[357854740,1744474238978,-839.39435038,0.00023793,2]
[357854743,1744474238988,-839.39435038,0.00023793,2]
[357854745,1744474238999,-839.39435038,0.00023793,2]
[357854747,1744474239010,-839.39435038,0.00023793,2]
[357854749,1744474239020,-839.39435038,0.00023793,2]
[357854751,1744474239030,-839.39435038,0.00023793,2]
[357854753,1744474239039,-839.39435038,0.00023793,2]
[357854755,1744474239049,-839.39435038,0.00023793,2]
[357854757,1744474239059,-839.39435038,0.00023793,2]
[357854759,1744474239069,-839.39435038,0.00023793,2]
[357854761,1744474239079,-839.39435038,0.00023793,2]
[357854763,1744474239092,-839.39435038,0.00023793,2]
[357854765,1744474239101,-839.39435038,0.00023793,2]
[357854767,1744474239111,-351096.93656987,0.00023797,2]
[357854769,1744474239122,-151.0,0.00023797,7]
[357854771,1744474239131,-151.0,0.00023797,7]
[357854773,1744474239141,-151.0,0.00023797,7]
[357854775,1744474239151,-151.0,0.00023797,7]
[357854777,1744474239162,-151.0,0.00023797,7]
[357854779,1744474239173,-151.0,0.00023797,7]
[357854781,1744474239182,-151.0,0.00023797,7]
[357854783,1744474239192,-151.0,0.00023797,7]
[357854785,1744474239202,-151.0,0.00023797,7]
[357854787,1744474239211,-151.0,0.00023797,7]
[357854789,1744474239221,-300.00938744,0.00023873,2]
[357854791,1744474239231,-151.0,0.00023895,7]
[357854793,1744474239241,-151.0,0.00023895,7]
[357854795,1744474239251,-151.0,0.00023895,7]
[357854797,1744474239261,-151.0,0.00023895,7]
[357854799,1744474239271,-151.0,0.00023896,7]
[357854801,1744474239281,-151.0,0.00023896,7]
[357854803,1744474239292,-151.0,0.000239,7]
[357854805,1744474239302,-239.479358,0.000239,7]
[357854807,1744474239312,-557.60334,0.000239,7]
[357854809,1744474239322,-557.60334,0.000239,7]
[357854812,1744474239332,-866.87884,0.000239,2]
[357854814,1744474239341,-866.87884,0.000239,2]
[357854815,1744474239351,-442.132499,0.000239,7]
[357854818,1744474239361,-442.132499,0.000239,7]
[357854819,1744474239371,-151.0,0.000239,7]
[357854822,1744474239381,-151.0,0.000239,7]
[357854824,1744474239390,-151.0,0.000239,7]
[357854826,1744474239400,-154.728041,0.000239,7]
[357854828,1744474239412,-151.0,0.000239,7]
[357854830,1744474239421,-151.0,0.000239,7]
[357854832,1744474239431,-151.0,0.000239,7]
[357854834,1744474239441,-151.0,0.000239,7]
[357854836,1744474239451,-151.0,0.000239,7]
[357854838,1744474239461,-151.0,0.000239,7]
[357854840,1744474239471,-151.0,0.000239,7]
[357854842,1744474239481,-151.0,0.000239,7]
[357854844,1744474239490,-3262.11230451,0.000239,5]
[357854846,1744474239500,-56781.21568823,0.00024,2]
[357854848,1744474239514,-1150.60243313,0.00024,2]
[357854851,1744474239526,-1599.13135451,0.00024,2]
[357854853,1744474239539,-3579.72747579,0.00024,2]
[357854855,1744474239552,-954.20543836,0.00024,2]
[357854857,1744474239564,-1998.49179696,0.00024,2]
[357854860,1744474239574,-151.0,0.00024,7]
[357854862,1744474239584,-262.484311,0.00024,7]
[357854864,1744474239594,-151.0,0.00024,7]
[357854866,1744474239605,-89.48545456,0.00024,7]
[357854868,1744474239618,-271.40808244,0.00024,7]
[357854870,1744474239628,-151.0,0.00024,7]
[357854872,1744474239638,-476.36092771,0.00024,7]
[357855214,1744474243118,-81.24241229,0.00024,7]
[357855216,1744474243130,-557.60334,0.00024,7]
[357855218,1744474243140,-866.87884,0.00024,2]
[357855220,1744474243150,-76.21731219,0.00024,2]
[357855228,1744474243221,-790.66152781,0.00024,2]
[357855230,1744474243233,-442.132499,0.00024,7]
[357855232,1744474243244,-5.95042039,0.00024,7]
[357855235,1744474243259,-436.18207861,0.00024,7]
[357855237,1744474243270,-151.0,0.00024,7]
[357855239,1744474243280,-151.0,0.00024,7]
[357855241,1744474243290,-151.0,0.00024,7]
[357855243,1744474243302,-153.635762,0.00024,7]
[357855245,1744474243313,-151.0,0.00024,7]
[357855248,1744474243324,-151.0,0.00024,7]
[357855250,1744474243335,-151.0,0.00024,7]
[357855252,1744474243345,-151.0,0.00024,7]
[357855254,1744474243356,-151.0,0.00024,7]
[357855256,1744474243367,-151.0,0.00024,7]
[357855258,1744474243378,-151.0,0.00024,7]
[357855260,1744474243388,-151.0,0.00024,7]
[357855262,1744474243398,-151.0,0.00024,7]
[357855264,1744474243409,-151.0,0.00024,7]
[357855266,1744474243419,-151.0,0.00024,7]
[357855268,1744474243430,-151.520807,0.00024,7]
[357855270,1744474243440,-151.0,0.00024,7]
[357855272,1744474243451,-160.0,0.00024,7]
[357855274,1744474243462,-154.030535,0.00024,7]
[357855277,1744474243473,-496.9000277,0.00024152,2]
[357855279,1744474243483,-1000.0,0.00024321,2]
[357855281,1744474243495,-3262.11230443,0.00024452,5]
[357855283,1744474243506,-160.0,0.00024475,2]
[357855285,1744474243517,-420.0,0.00024482,2]
[357855287,1744474243527,-163.05467205,0.0002459,2]
[357855289,1744474243541,-13.33285863,0.0002459,2]
[357855291,1744474243553,-224.22574532,0.0002459,2]
[357855293,1744474243563,-2314.47,0.000246,2]
[357855295,1744474243574,-183.6493715,0.000247,2]
[357855298,1744474243584,-585.04260513,0.00024868,2]
[357855590,1744474246390,-195.25914762,0.00024868,2]
[357855594,1744474246418,-719.69824725,0.00024868,2]
[357855596,1744474246428,-500.62051794,0.00024873,2]
[357855598,1744474246438,-502.25643949,0.00024873,2]
[357855600,1744474246448,-500.0,0.00024873,2]
[357855602,1744474246458,-500.0,0.00024873,2]
[357855604,1744474246468,-500.0,0.00024873,2]
[357855606,1744474246479,-500.0,0.00024873,2]
[357855608,1744474246488,-281.66872808,0.00024873,2]
[357855610,1744474246498,-223.72329359,0.00024873,2]
[357855612,1744474246509,-603.5199,0.00024873,2]
[357855614,1744474246518,-500.0,0.00024873,2]
[357855617,1744474246529,-583.3180547,0.00024873,2]
[357855619,1744474246539,-500.0,0.00024873,2]
[357855621,1744474246548,-500.0,0.00024873,2]
[357855623,1744474246558,-500.0,0.00024873,2]
[357855625,1744474246568,-502.11717891,0.00024873,2]
[357855627,1744474246578,-268.59227821,0.00024873,2]
[357855629,1744474246588,-596.82037082,0.00024873,2]
[357855631,1744474246598,-500.0,0.00024873,2]
[357855633,1744474246608,-151.0,0.000249,3]
[357855635,1744474246617,-275.757013,0.000249,7]
[357855637,1744474246627,-155.085247,0.000249,2]
[357855639,1744474246637,-151.0,0.000249,7]
[357855641,1744474246647,-151.0,0.000249,7]
[357855643,1744474246657,-151.0,0.000249,2]
[357855645,1744474246666,-151.0,0.000249,7]
[357855647,1744474246676,-151.0,0.000249,7]
[357855650,1744474246686,-360.893537,0.000249,7]
[357855652,1744474246696,-151.0,0.000249,7]
[357855654,1744474246706,-557.60334,0.000249,7]
[357855656,1744474246716,-557.60334,0.000249,7]
[357855658,1744474246726,-866.87884,0.000249,2]
[357855660,1744474246736,-866.87884,0.000249,2]
[357855662,1744474246746,-442.132499,0.000249,7]
[357855664,1744474246756,-442.132499,0.000249,7]
[357855666,1744474246766,-151.0,0.000249,7]
[357855668,1744474246776,-151.0,0.000249,7]
[357855670,1744474246786,-151.0,0.000249,7]
[357855672,1744474246796,-151.0,0.000249,7]
[357855674,1744474246806,-151.0,0.000249,7]
[357855676,1744474246817,-151.0,0.000249,7]
[357855679,1744474246830,-204.352822,0.000249,7]
[357855681,1744474246839,-151.0,0.000249,7]
[357855683,1744474246849,-151.0,0.000249,7]
[357855685,1744474246859,-151.0,0.000249,7]
[357855687,1744474246869,-151.0,0.000249,7]
[357855689,1744474246879,-8275.61459156,0.000249,2]
[357855691,1744474246892,-789.89999992,0.000249,2]
[357855710,1744474247059,-57721.37065699,0.000249,2]
[357855713,1744474247074,-15220.41715515,0.000249,2]
[357856107,1744474361142,-192.70139468,0.0002,2]
[357856108,1744474388580,-153.47590988,0.0002,2]
[357856109,1744474391578,-153.47590988,0.0002,2]
[357856124,1744475103295,4742.0,0.00015001,2]
[357856125,1744475103375,986.0,0.00015001,2]
[357856128,1744475192748,-199.062246,0.00015001,2]
[357856129,1744475298011,409.13560508,0.0001399,2]
[357856130,1744475299338,-212.2759014,0.0002,2]
[357856131,1744475299647,8133.95233758,0.000125,2]
[357856663,1744475320173,3549.35883386,9e-05,2]
[357856664,1744475321460,-184.99708714,0.0002,2]
[357856727,1744475432083,-644.55302527,0.0002,2]
[357856728,1744475432093,-250.0,0.00021264,2]
[357856729,1744475432104,-648.8731451,0.00021351,2]
[357856730,1744475432114,-450.0082093,0.00021458,2]
[357856731,1744475432125,-1740.1851828,0.00021483,2]
[357856732,1744475432134,-1978.0001267,0.00021538,2]
[357856734,1744475432146,-2907.0327471,0.00021983,2]
[357856735,1744475432156,-300.0,0.00022342,2]
[357856736,1744475432166,-300.0,0.00022342,2]
[357856737,1744475432175,-1785.9526339,0.00022343,2]
[357856738,1744475432185,-588.856448,0.00022426,2]
[357856739,1744475432195,-834.91454662,0.00022431,2]
[357856740,1744475432206,-2814.50575667,0.0002258,2]
[357856741,1744475432217,-188.52230124,0.00022669,2]
[357856742,1744475432227,-21215.44848044,0.0002268,2]
[357856743,1744475432241,-1685.28989609,0.0002268,2]
[357856744,1744475432258,-3502.07552163,0.0002268,2]
[357856755,1744475438071,-5289.56756181,0.0002268,2]
[357856757,1744475438085,-1188.6339193,0.0002268,2]
[357856760,1744475438099,-1265.92825885,0.0002268,2]
[357856762,1744475438110,-6642.97172415,0.0002268,2]
[357856789,1744475438374,-18257.02827585,0.0002268,2]
[357856791,1744475438384,-3484.47612307,0.000229,4]
[357856793,1744475438395,-188.52230122,0.00022926,2]
[357856795,1744475438405,-188.52230122,0.00023183,2]
[357856797,1744475438415,-188.52230122,0.0002344,2]
[357856800,1744475438425,-3484.47612279,0.00023486,4]
[357856802,1744475438435,-500.0,0.00023673,2]
[357856804,1744475438445,-500.0,0.00023673,2]
[357856806,1744475438454,-500.0,0.00023673,2]
[357856808,1744475438464,-500.0,0.00023673,2]
[357856810,1744475438476,-500.0,0.00023673,2]
[357856812,1744475438487,-500.0,0.00023673,2]
[357856814,1744475438496,-786.52,0.00023675,3]
[357856816,1744475438507,-500.0,0.00023679,2]
[357856818,1744475438518,-500.0,0.00023679,2]
[357856820,1744475438527,-611.70952247,0.00023679,2]
[357856822,1744475438537,-500.0,0.00023679,2]
[357856824,1744475438548,-611.70952247,0.00023679,2]
[357856826,1744475438559,-247.59879113,0.00023679,2]
[357856828,1744475438568,-500.0,0.00023679,2]
[357856830,1744475438578,-611.70952247,0.00023679,2]
[357856832,1744475438588,-500.0,0.00023679,2]
[357856834,1744475438598,-611.70952247,0.00023679,2]
[357856836,1744475438608,-500.0,0.00023679,2]
[357856838,1744475438618,-500.0,0.00023679,2]
[357856840,1744475438628,-596.23257399,0.00023679,2]
[357856842,1744475438637,-500.0,0.00023679,2]
[357856844,1744475438648,-500.0,0.00023679,2]
[357856846,1744475438659,-611.70952247,0.00023679,2]
[357856848,1744475438669,-611.70952247,0.00023679,2]
[357856850,1744475438679,-500.0,0.00023679,2]
[357856852,1744475438688,-611.70952247,0.00023679,2]
[357856854,1744475438699,-500.0,0.00023679,2]
[357856856,1744475438709,-611.70952247,0.00023679,2]
[357856859,1744475438719,-611.70952247,0.00023679,2]
[357856861,1744475438729,-611.70952247,0.00023679,2]
[357856863,1744475438739,-500.0,0.00023679,2]
[357856865,1744475438749,-611.70952247,0.00023679,2]
[357856867,1744475438760,-611.70952247,0.00023679,2]
[357856869,1744475438769,-500.0,0.00023679,2]
[357856871,1744475438779,-611.70952247,0.00023679,2]
[357856873,1744475438789,-611.70952247,0.00023679,2]
[357856875,1744475438799,-611.70952247,0.00023679,2]
[357856877,1744475438809,-611.70952247,0.00023679,2]
[357856879,1744475438819,-611.70952247,0.00023679,2]
[357856881,1744475438829,-611.70952247,0.00023679,2]
[357856883,1744475438838,-611.70952247,0.00023679,2]
[357856885,1744475438849,-611.70952247,0.00023679,2]
[357856887,1744475438859,-611.70952247,0.00023679,2]
[357856889,1744475438868,-611.70952247,0.00023679,2]
[357856891,1744475438879,-611.70952247,0.00023679,2]
[357856893,1744475438888,-611.70952247,0.00023679,2]
[357856895,1744475438898,-611.70952247,0.00023679,2]
[357856897,1744475438908,-611.70952247,0.00023679,2]
[357856899,1744475438919,-611.70952247,0.00023679,2]
[357856902,1744475438929,-611.70952247,0.00023679,2]
[357856904,1744475438940,-611.70952247,0.00023679,2]
[357856906,1744475438950,-611.70952247,0.00023679,2]
[357856908,1744475438959,-611.70952247,0.00023679,2]
[357856910,1744475438969,-611.70952247,0.00023679,2]
[357856912,1744475438979,-611.70952247,0.00023679,2]
[357856914,1744475438989,-611.70952247,0.00023679,2]
[357856916,1744475439000,-611.70952247,0.00023679,2]
[357856918,1744475439010,-611.70952247,0.00023679,2]
[357856920,1744475439021,-611.70952247,0.00023679,2]
[357856922,1744475439031,-611.70952247,0.00023679,2]
[357856924,1744475439041,-255.0,0.0002368,2]
[357856926,1744475439051,-207.4,0.0002368,2]
[357856928,1744475439062,-500.0,0.00023687,2]
[357856930,1744475439071,-500.0,0.00023688,2]
[357856932,1744475439081,-151.0,0.00023688,2]
[357856934,1744475439091,-945.9224334,0.00023688,2]
[357856936,1744475439101,-151.0,0.00023688,2]
[357856938,1744475439113,-500.0,0.00023688,2]
[357856940,1744475439123,-151.0,0.00023688,2]
[357856942,1744475439132,-500.0,0.00023688,2]
[357856945,1744475439142,-500.0,0.00023688,2]
[357856947,1744475439153,-190.19218234,0.00023688,2]
[357856949,1744475439162,-153.44095802,0.00023689,2]
[357856951,1744475439172,-210.2468566,0.00023689,2]
[357856953,1744475439182,-500.0,0.00023689,2]
[357856955,1744475439191,-215.82337637,0.00023693,2]
[357856957,1744475439201,-500.0,0.00023693,2]
[357856959,1744475439210,-178.82641162,0.00023693,2]
[357856961,1744475439220,-407.71364003,0.00023693,2]
[357856963,1744475439230,-285.94182566,0.00023693,2]
[357856965,1744475439239,-48549.87509091,0.00023694,2]
[357857019,1744475439983,-69064.55559073,0.00023694,2]
[357857073,1744475440504,-393.26,0.00023684,3]
[357857075,1744475440514,-47285.32869567,0.00023694,2]
[357857343,1744475443163,-2204.90007234,0.00023694,2]
[357857346,1744475443180,-548.67886231,0.00023694,2]
[357857605,1744475446076,-4469.1262644,0.00023694,2]
[357857606,1744475446130,-3598.68252084,0.00023694,2]
[357857861,1744476003786,-151.0,0.00022532,2]
[357857864,1744476144692,-250.0,0.00022532,2]
[357857866,1744476402036,-250.0,0.00022532,2]
[357857867,1744476476830,4000.0,0.00027,30]
[357857910,1744476632246,-151.0,0.00022433,2]
[357857911,1744476632256,-45.898897,0.00022532,2]
[357857912,1744476632266,-250.0,0.00022584,2]
[357857913,1744476632276,-1000.0,0.00022584,2]
[357857914,1744476632285,-200.0,0.00022674,2]
[357857915,1744476632296,-300.0,0.00022683,2]
[357857916,1744476632306,-300.0,0.00022683,2]
[357857917,1744476632315,-21209.1679334,0.00022684,2]
[357857918,1744476632325,-166.452031,0.00023441,2]
[357857919,1744476632335,-2583.01899135,0.00023473,2]
[357857920,1744476632345,-349.69936494,0.00023488,2]
[357857921,1744476632355,-152.0,0.00023495,2]
[357857922,1744476632364,-500.0,0.00023573,2]
[357857923,1744476632374,-397.36931377,0.00023573,2]
[357857924,1744476632384,-500.0,0.00023573,2]
[357857925,1744476632394,-250.26115361,0.00023573,2]
[357857926,1744476632403,-500.0,0.00023573,2]
[357857927,1744476632413,-500.0,0.00023573,2]
[357857928,1744476632423,-500.0,0.00023573,2]
[357857929,1744476632433,-151.0,0.00023574,2]
[357857930,1744476632444,-977.68,0.00023576,3]
[357857931,1744476632454,-207.4,0.00023577,2]
[357857932,1744476632463,-151.0,0.00023577,2]
[357857933,1744476632474,-151.0,0.00023577,2]
[357857934,1744476632483,-151.0,0.00023577,2]
[357857935,1744476632494,-151.0,0.00023577,2]
[357857936,1744476632504,-151.0,0.00023577,2]
[357857937,1744476632514,-151.0,0.00023577,2]
[357857938,1744476632525,-151.0,0.00023577,2]
[357857939,1744476632534,-151.0,0.00023577,2]
[357857940,1744476632544,-151.0,0.00023577,2]
[357857941,1744476632554,-151.0,0.00023577,2]
[357857942,1744476632565,-500.0,0.00023586,2]
[357857943,1744476632575,-500.0,0.00023589,2]
[357857944,1744476632585,-268.29972325,0.00023589,2]
[357857945,1744476632595,-500.0,0.00023589,2]
[357857946,1744476632605,-151.0,0.00023589,2]
[357857947,1744476632615,-166.82959241,0.00023589,2]
[357857948,1744476632625,-151.37266846,0.00023589,2]
[357857949,1744476632636,-202.01403187,0.00023589,2]
[357857950,1744476632646,-151.0,0.00023589,2]
[357857951,1744476632656,-202.00522434,0.00023589,2]
[357857952,1744476632666,-151.0,0.00023589,2]
[357857953,1744476632675,-500.0,0.00023589,2]
[357857954,1744476632685,-500.0,0.00023589,2]
[357857955,1744476632695,-500.0,0.00023589,2]
[357857956,1744476632705,-204.65889236,0.00023589,2]
[357857957,1744476632715,-151.0,0.00023589,2]
[357857958,1744476632725,-151.0,0.00023589,2]
[357857959,1744476632736,-500.0,0.00023589,2]
[357857960,1744476632746,-151.0,0.00023589,2]
[357857961,1744476632756,-500.0,0.00023589,2]
[357857962,1744476632766,-500.0,0.00023589,2]
[357857963,1744476632776,-151.0,0.0002359,2]
[357857964,1744476632786,-236.98819693,0.00023593,2]
[357857965,1744476632795,-500.0,0.00023593,2]
[357857966,1744476632806,-500.0,0.00023593,2]
[357857967,1744476632816,-280.19518425,0.00023593,2]
[357857968,1744476632826,-78255.32356372,0.00023594,2]
[357857969,1744476632835,-151.0,0.00023797,7]
[357857970,1744476632845,-349.6993649,0.00023816,2]
[357857971,1744476632854,-500.0,0.00023894,2]
[357857972,1744476632864,-3252.17771472,0.000239,5]
[357857973,1744476632873,-151.0,0.00024,7]
[357857974,1744476632884,-1000.0,0.00024121,2]
[357857975,1744476632896,-835.30450333,0.00024137,2]
[357857976,1744476632906,-510.26307929,0.00024137,2]
[357857977,1744476632916,-151.0,0.00024137,2]
[357857978,1744476632927,-151.0,0.00024137,2]
[357857979,1744476632938,-214.89444567,0.00024137,2]
[357857980,1744476632948,-500.0,0.00024137,2]
[357857981,1744476632958,-500.0,0.00024137,2]
[357857982,1744476632971,-763.18612512,0.00024137,2]
[357857983,1744476632983,-151.0,0.00024137,2]
[357857984,1744476632994,-500.0,0.00024137,2]
[357857985,1744476633004,-500.0,0.00024137,2]
[357857986,1744476633015,-500.0,0.00024137,2]
[357857987,1744476633026,-151.0,0.00024138,2]
[357857988,1744476633036,-349.6993649,0.00024144,2]
[357857989,1744476633047,-452.8639026,0.00024152,2]
[357857990,1744476633058,-160.0,0.00024286,2]
[357857991,1744476633069,-160.0,0.00024286,2]
[357857992,1744476633078,-2779.29581387,0.00024286,2]
[357857993,1744476633092,-5367.88373159,0.00024286,2]
[357857994,1744476633102,-160.0,0.00024286,2]
[357857995,1744476633112,-3252.1777146,0.00024452,5]
[357857996,1744476633122,-349.6993649,0.00024472,2]
[357857997,1744476633132,-153.798,0.00024561,2]
[357857998,1744476633149,-543.0,0.00024561,2]
[357857999,1744476633160,-706.0,0.00024561,2]
[357858000,1744476633170,-2338.554,0.00024561,2]
[357858001,1744476633180,-420.0,0.00024631,2]
[357858002,1744476633192,-976.1068266,0.00024658,4]
[357858003,1744476633202,-1500.0,0.00024668,2]
[357858004,1744476633213,-299.50856778,0.00024685,2]
[357858005,1744476633223,-209.03835469,0.00024685,2]
[357858006,1744476633234,-500.0,0.00024685,2]
[357858007,1744476633244,-500.0,0.00024685,2]
[357858008,1744476633254,-163.0768239,0.00024685,2]
[357858009,1744476633266,-500.0,0.00024685,2]
[357858010,1744476633276,-500.0,0.00024685,2]
[357858011,1744476633287,-500.0,0.00024685,2]
[357858012,1744476633298,-151.0,0.00024686,2]
[357858013,1744476633309,-349.6993649,0.000248,2]
[357858014,1744476633320,-500.0,0.00024873,2]
[357858015,1744476633330,-500.0,0.00024873,2]
[357858016,1744476633341,-500.0,0.00024873,2]